Cogmind - Beta 13 @@@ ROGUE MODE // 2024.07.01 @ 19:34:07 Player: Trollpotato Result: Smashed by cave-in Performance ------------- Evolutions (0) 0 Regions Visited (2) 400 Robots Destroyed (27) 135 Value Destroyed (508) 508 Prototype IDs (0) 0 Alien Tech Used (0) 0 Bonus (0) 0 TOTAL SCORE: 1043 Bonus ------- None Cogmind --------- Core Integrity 0/250 Matter 237/300 Energy 93/100 System Corruption 2% Temperature Cool (0) Movement Core (750) Ox14 Location -10/Mines Parts ------- > --- POWER (1) -------- (None) > --- PROPULSION (2) --- Light Treads > --- UTILITY (2) ------ High-capacity Storage Unit > --- WEAPON (2) ------- Assault Rifle Flail > --- INVENTORY (20) --- Disposable Heat Sink High-capacity Battery (250) High-capacity Matter Pod (200) Weight Redist. System Structural Scanner Sensor Array Sensor Array Signal Interpreter Hacking Suite Small Laser Particle Gun Subdweller Machine Gun Rocket Launcher Flail Peak State ------------ > --- POWER ------------ Light Nuclear Core > --- PROPULSION ------- Light Treads Subdweller Monowheel > --- UTILITY ---------- Large Storage Unit Sensor Array > --- WEAPON ----------- Small Laser Particle Gun > --- INVENTORY -------- Wheel Disposable Heat Sink Medium Storage Unit High-capacity Matter Pod Weight Redist. System Structural Scanner Subdweller Optics Signal Interpreter Hacking Suite Subdweller Beam Cannon Subdweller Machine Gun Grenade Launcher Flail Scrap Shield Fragment [Rating: 13] Favorites ----------- Power Light Nuclear Core Engine Ion Engine Power Core Light Nuclear Core Propulsion Wheel Treads Light Treads Wheel Wheel Utility Sensor Array Device Sensor Array Storage Large Storage Unit Protection Light Armor Plating Weapon Assault Rifle Energy Gun Small Laser Ballistic Gun Assault Rifle Launcher Rocket Launcher Impact Weapon Flail Build | -11 -10 -10 ------- Run | Yrd Mat Min Slots Evolved . | . . . Power . | . . . Propulsion . | . . . Utility . | . . . Weapon . | . . . Parts Attached 36 | 5 25 6 Power 5 | 1 4 . Engine 3 | 1 2 . Core 2 | . 2 . Reactor . | . . . Propulsion 8 | 2 6 . Treads 2 | . 2 . Leg . | . . . Wheel 6 | 2 4 . Hover . | . . . Flight . | . . . Utility 9 | . 6 3 Device 2 | . 2 . Storage 3 | . 2 1 Processor . | . . . Hackware . | . . . Protection 4 | . 2 2 Artifact . | . . . Weapon 14 | 2 9 3 Energy Gun 2 | . 2 . Energy Cannon . | . . . Ballistic Gun 7 | 2 4 1 Ballistic Cannon . | . . . Launcher 2 | . . 2 Special Weapon . | . . . Impact Weapon 3 | . 3 . Slashing Weapon . | . . . Piercing Weapon . | . . . Special Melee Weapon . | . . . Unidentified Prototypes . | . . . Parts Lost 11 | . 6 5 Power 2 | . 1 1 Propulsion 3 | . 2 1 Utility 3 | . 1 2 Weapon 3 | . 2 1 Highest Loss Streak 6 | . 6 5 To Critical Strikes 1 | . 1 . Average Slot Usage (%) 96 | . 96 98 Engine 4 | . 6 . Core 9 | . 7 13 Treads 9 | . 7 14 Wheel 18 | . 19 13 Device 12 | . 12 13 Storage 10 | . 9 14 Protection 3 | . 4 . Energy Gun 9 | . 7 13 Ballistic Gun 10 | . 13 . Impact Weapon 8 | . 6 14 Naked Turns . | . . . Heaviest Build 51 | 5 31 51 Greatest Support 26 | 20 26 10 Greatest Overweight (x) 5 | . 3 5 Average Overweight (x) 1 | . . 3 Largest Inventory Capacity 20 | 5 15 20 Average Capacity 12 | 5 11 18 Most Carried 16 | 5 15 16 Average Carried 11 | 3 10 15 Final Capacity 20 | 5 15 20 Final Carried 15 | 5 15 14 Class Distribution -------------------- 61% | Scavenger-Mutant 38% | Mutant Dominant Class ---------------- Scavenger-Mutant | -10/Materials Scavenger-Mutant | -10/Mines Resources | -11 -10 -10 ----------- Run | Yrd Mat Min Matter Collected 1140 | 310 810 20 Remotely . | . . . Salvage Created 863 | 58 705 100 Parts 65 | 6 59 . Haulers Intercepted 2 | . 2 . Recyclers Shooed 2 | . . 2 Parts Field Recycled . | . . . Retrieved Matter . | . . . Parts Self-Destructed . | . . . Prevented . | . . . Kills | -11 -10 -10 ------- Run | Yrd Mat Min Combat Hostiles Destroyed 25 | 1 17 7 Melee 1 | . 1 . Guns 18 | 1 15 2 AOE 5 | . . 5 Classes Destroyed 9 | 2 6 1 Worker 1 | 1 . . Hauler 2 | . 2 . Recycler 2 | . 1 1 Operator 2 | . 2 . Watcher 2 | . 2 . Swarmer 9 | . 9 . Grunt 6 | 1 5 . Subdweller 3 | . 3 . Assembled 7 | . . 7 Best Kill Streak 7 | 1 3 7 Combat Bots Only 7 | 1 3 7 Max Kills in Single Turn 2 | 1 2 2 Gunslinging 1 | . 1 . Exploded 2 | . . 2 Melee 1 | . 1 . Uniques/NPCs Destroyed . | . . . Combat | -11 -10 -10 -------- Run | Yrd Mat Min Hostile Shots Fired 126 | 5 90 31 Missed 33 | 2 24 7 Damage Taken 1535 | 33 876 626 Core 273 | . 170 103 Absorbed by Shields . | . . . Core Remaining (%) 100 | 100 . . Volleys Fired 97 | 5 87 5 Largest 2 | 2 2 1 Hottest 70 | 40 70 33 Shots Fired 164 | 10 149 5 Gun 161 | 10 149 2 Cannon . | . . . Launcher 3 | . . 3 Special . | . . . Kinetic 152 | 10 140 2 Thermal 9 | . 9 . Explosive 3 | . . 3 Electromagnetic . | . . . Robot Hit Streak 9 | 4 9 4 Robot Miss Streak 4 | 1 4 . Penetration Max . | . . . Secondary Targets 1 | . 1 . Max Gunslinging Chain 1 | . 1 . Shots Hit Robots 99 | 7 85 7 Core Hits 52 | 4 33 15 Critical Kills 1 | . 1 . Critical Parts Destroyed 1 | . 1 . Critical Strikes 2 | . 2 . Destroy 1 | . 1 . Smash 1 | . 1 . Melee Attacks 20 | . 13 7 Impact 20 | . 13 7 Slashing . | . . . Piercing . | . . . Sneak Attacks 2 | . 1 1 Combat Hostiles . | . . . Follow-up Attacks . | . . . Damage Inflicted 2004 | 56 1187 761 Guns 1086 | 56 1002 28 Cannons . | . . . Explosions 482 | . . 482 Melee 436 | . 185 251 Ramming . | . . . Kinetic 1030 | 56 946 28 Thermal 56 | . 56 . Explosive 482 | . . 482 Electromagnetic . | . . . Impact 436 | . 185 251 Slashing . | . . . Piercing . | . . . Highest Corruption 2 | . . 2 Average Corruption 2 | . . 2 Corruption Purged . | . . . Corruption Blocked . | . . . Effects 1 | . . 1 Data Loss (major) 1 | . . 1 Overload Shots . | . . . Overflow Damage 78 | . 24 54 Projectiles . | . . . Explosions 16 | . . 16 Melee 62 | . 24 38 Knockbacks 3 | . 3 . Impact 3 | . 3 . Kinetic . | . . . Secondary . | . . . Self-Inflicted Damage 40 | . . 40 Shots 2 | . . 2 Rammed . | . . . Targets Rammed . | . . . Kicked . | . . . Crushed . | . . . Highest Temperature 277 | 6 277 14 Average Temperature 52 | 6 58 7 Received Heat Transfer 541 | 18 423 100 Effects 2 | . 2 . Interference 2 | . 2 . Siege Activations . | . . . Robots Corrupted . | . . . Combat Hostiles . | . . . Parts Fried 2 | . 2 . Impact Corruptions 5 | . 2 3 Robots Melted . | . . . Combat Hostiles . | . . . Parts Melted . | . . . Heat Transferred 125 | . 125 . Parts Sabotaged . | . . . Parts Stolen . | . . . Parts Stripped . | . . . Power Chain Reactions . | . . . Alert | -11 -10 -10 ------- Run | Yrd Mat Min Peak Influence 368 | 25 368 59 Initial 39 | . 16 39 Average 95 | 5 115 47 Maximum Alert Level 1 | . 1 . Low Security (%) 89 | 100 85 100 Level 1 10 | . 14 . Level 2 . | . . . Level 3 . | . . . Level 4 . | . . . Level 5 . | . . . High Security . | . . . Max Security . | . . . Squads Dispatched 2 | . 2 . Investigation . | . . . Extermination . | . . . Reinforcement 2 | . 2 . Assault . | . . . Garrison . | . . . Intercept . | . . . Searches Triggered . | . . . Construction Impeded . | . . . Haulers Reinforced . | . . . Active Scanning Responses . | . . . Cargo Convoy Interrupts . | . . . Stealth | -11 -10 -10 --------- Run | Yrd Mat Min Distress Signals 1 | . 1 . Communications Jammed . | . . . Distress Signals . | . . . Times Spotted 46 | 1 33 12 Peak Tracking Total 10 | 1 4 10 Tactical Retreats 2 | . 1 1 Traps | -11 -10 -10 ------- Run | Yrd Mat Min Traps Triggered . | . . . Indirectly . | . . . Trap Hack Attempts . | . . . Triggered . | . . . Disarmed . | . . . Reprogrammed . | . . . Reused . | . . . Traps Extracted . | . . . Installed . | . . . Triggered . | . . . Machines | -11 -10 -10 ---------- Run | Yrd Mat Min Machines Disabled . | . . . Max in Single Turn . | . . . Machines Repaired . | . . . Machines Dismantled . | . . . Machines Sabotaged . | . . . Overloaded Fab Kills . | . . . Hacking | -11 -10 -10 --------- Run | Yrd Mat Min Machines Accessed 6 | . 6 . Terminals 5 | . 5 . Fabricators . | . . . Repair Stations . | . . . Recycling Units 1 | . 1 . Scanalyzers . | . . . Garrison Access . | . . . Total Hacks 15 | . 15 . Successful 3 | . 3 . Failed 12 | . 12 . Catastrophic 2 | . 2 . Database Lockouts . | . . . Manual 15 | . 15 . Terminals 13 | . 13 . Fabricators . | . . . Repair Stations . | . . . Recycling Units 2 | . 2 . Scanalyzers . | . . . Garrison Access . | . . . Terminal Hacks . | . . . Fabricator Hacks . | . . . Repair Station Hacks . | . . . Recycling Unit Hacks . | . . . Scanalyzer . | . . . Garrison Access Hacks . | . . . Unauthorized Hacks 3 | . 3 . Terminals 3 | . 3 . Botnet 3 | . 3 . Fabricators . | . . . Repair Stations . | . . . Recycling Units . | . . . Scanalyzers . | . . . Garrison Access . | . . . Data Cores Recovered . | . . . Used . | . . . Hacking Detections 6 | . 6 . Full Trace Events 1 | . 1 . Feedback Events . | . . . Feedback Blocked . | . . . Robot Schematics Acquired . | . . . Robots Built . | . . . Authchips . | . . . Time . | . . . Total Robot Build Rating . | . . . Part Schematics Acquired . | . . . Parts Built . | . . . Authchips . | . . . Time . | . . . Total Part Build Rating . | . . . Parts Repaired . | . . . Time . | . . . Parts Recycled . | . . . Recycled Matter . | . . . Retrieved Matter . | . . . Retrieved Components . | . . . Parts Scanalyzed . | . . . Part Schematics Acquired . | . . . Parts Damaged . | . . . Bothacking | -11 -10 -10 ------------ Run | Yrd Mat Min Used RIF Installer . | . . . Robots Hacked . | . . . Non-combat . | . . . Combat . | . . . Robot Hacks Applied . | . . . Relay Couplers Released . | . . . Fabnet Peak Effective % . | . . . Robots Rewired . | . . . Allies Hacked . | . . . Hacks Repelled . | . . . Allies | -11 -10 -10 -------- Run | Yrd Mat Min Total Allies . | . . . Largest Group . | . . . Highest-Rated Group . | . . . Highest-Rated Ally . | . . . Total Orders . | . . . Ally Attacks . | . . . Total Damage . | . . . Kills . | . . . Allies Corrupted . | . . . Allies Melted . | . . . Intel | -11 -10 -10 ------- Run | Yrd Mat Min Robot Analysis Total . | . . . Derelict Logs Recovered 1 | . . 1 Drone Launches . | . . . Drone Recoveries . | . . . Exploration | -11 -10 -10 ------------- Run | Yrd Mat Min Turns Passed 2050 | 86 1495 469 Spaces Moved 1482 | 76 1095 311 Core 17 | 17 . . Treads 6 | . 6 . Legs . | . . . Wheels 1459 | 59 1089 311 Hover . | . . . Flight . | . . . Fastest Speed 50 | 50 80 110 Average Speed 105 | 73 101 127 Slowest Speed 240 | 80 240 155 Overloaded Moves . | . . . Propulsion Burnouts . | . . . Robots Hopped . | . . . Cave-ins Triggered 1 | . . 1 Exploration Rate (%) 55 | 6 99 62 Regions Visited 2 Branch Regions 1 Pre-discovered Areas . | . . . Known Exits Taken . | . . . Unknown Exits Taken 2 | 1 1 . Scrap Searched 2 | . . 2 Spaces Dug 9 | . 4 5 Terrain Destroyed 21 | . 4 17 Melee 4 | . 4 . Projectile . | . . . AOE 17 | . . 17 Terrain Rammed . | . . . Walls Destroyed . | . . . Machines Disabled . | . . . Actions | -11 -10 -10 --------- Run | Yrd Mat Min Total 1778 | 96 1313 369 Wait 94 | 4 54 36 Move 1480 | 75 1094 311 Hop . | . . . Pick Up 31 | 6 23 2 Fast Attach 11 | 5 6 . Attach 6 | . 4 2 Detach . | . . . Swap 19 | . 15 4 Drop 20 | 1 17 2 Fire 97 | 5 87 5 Melee 20 | . 13 7 Ram . | . . . Kick . | . . . Crush . | . . . Escape Stasis . | . . . Rewire . | . . . Trap . | . . . Miscellaneous . | . . . Route ------- -11/Scrapyard -10/Materials (discovered 6 exits: [*Mat x3] / [*Min x2] / [*Sub]) -10/Mines (discovered 3 exits: [*Mat x2] / [*Exi]) History --------- Turn | Location | Event 2 | -11/Scrapyard | Met Revision 17 64 | -11/Scrapyard | Discovered new exit (range 8) 87 | -11/Scrapyard | Entered Materials 199 | -10/Materials | Discovered new exit (range 5) 232 | -10/Materials | Discovered new exit (range 3) 336 | -10/Materials | Discovered new exit (range 16) 337 | -10/Materials | Build established: Mutant 483 | -10/Materials | Discovered new exit (range 13) 687 | -10/Materials | Derelicts attacked the area 833 | -10/Materials | Core integrity fell below 50% 865 | -10/Materials | Lost 6 parts (1p2n1u2w) 1183 | -10/Materials | Build established: Scavenger-Mutant 1192 | -10/Materials | Discovered new exit (range 10) 1316 | -10/Materials | Discovered new exit (range 6) 1582 | -10/Materials | Entered Mines 1629 | -10/Mines | Joined a pair of Derelicts in attacking an 0b10 outpost 1713 | -10/Mines | Discovered new exit (range 11) 1761 | -10/Mines | Learned Materials emergency access door positions 1876 | -10/Mines | Received a Rocket Launcher from a helpful Derelict 1897 | -10/Mines | Deemed a non-threat by the Exiles lab entrance 1897 | -10/Mines | Discovered new exit (range 5) 1933 | -10/Mines | Discovered new exit (range 15) 2010 | -10/Mines | Assembled infested the area 2041 | -10/Mines | Core integrity fell below 20% 2052 | -10/Mines | Crushed by falling debris 2052 | -10/Mines | Smashed by cave-in Last Messages --------------- 02039_ Destroyed Asb. F-torch. 02039_ as-40392 destroyed. 02040_ Wheel destroyed. 02040_ System corrupted by crushing effect (+2). 02040_ Knocked back. 02040_ Grenade Launcher destroyed. 02043_ Lgt. Nuclear Core destroyed. 02043_ as-43025 destroyed. 02043_ as-09690 destroyed. 02044_ Critical hit (Destroy). 02045_ Destroyed Asb. Hover Unit. 02045_ as-31879 destroyed. 02045_ as-07692 destroyed. 02047_ System corrupted: Substantial component data lost. 02047_ Lgt. Armor Plating destroyed. 02048_ as-30083 destroyed. 02050_ as-87247 destroyed. 02052_ The unstable cave ceiling collapses. 02052_ Crushed by falling debris. Map ----- +----------------------------------------------------+ | ???????????????? ????????????????????????? | | ???????????????? ????????????????????????? | | ???????????????? ????????????????????????? | | ???????????????? ????????????????????????? | | ???????????????? ????????????????????????? | | ???????????????? ????????????????????????? | | ???????????????? ????????????????????????? | | ???????????????## ????????????????????????? | | ??????????????## ????????????????????????? | | ??????????????# #????????????????????????? | | ??????????????# #????????????????????????? | | ?????????????## #????????????????????????? | | ?????????##### #????????????????????????? | | ?????????# #????????????????????????? | | ??????????# #????????????????????????? | | ??????????### < ##???????????????????????? | | ???????????# ####????????????????????? | | ???????????# ###??????????????????? | | ???####????# ##?????????????????? | | ??## ##??## #?????????????????? | | ?## ##### ## #?????????????????? | | ?# ##?# ##?????????????????? | | ?# ##??####??????????????????? | | ?# ### ##??????????????????????? | | ?# #### ##?????????????????????? | | ?## #?# @ #?????????????????????? | | ??## #### ######????????????????? | | ??## ### ##???????????????? | | ??# ###?????????????? | | ??# ##????????????? | | ??## #????????????? | | ???# #### ### ##???????????? | | ??## ##??#####?## ##??????????? | | ??# ####??????????## ############ | | ??# ##??????????????# | | ??# ##??????????????# #### ###### | | ??# ##?????????????# ##?# #????? | | ??## ######????????# #?# #????? | | ???## ## ##???????# # ### #????? | | ????#### #???????# ## #????? | | ???????#### #???????# ### ######????? | | ??????????## #???????# #?####?????????? | | ???????????### ##???????# ###????????????? | | ?????????????#####????????# ##?????####### | | ??????????????????????????### #?????# | | ???????????????????????????## ##?????# | | ???????????????????????????# #??????# < | | ???????????????????????????# ##??????# | | ??????????????????????????#< #???????# | | ??????????????????????????####???????# | +----------------------------------------------------+ Best States ------------- Heat Dissipation 25 Energy Generation 14 Energy Capacity 250 Matter Stores 300 Matter Capacity 300 Sight Range 16 Robot Scan Range 14 Terrain Scan Density 10 Armor Coverage 150 Evasion (%) 50 Recoil Reduction 1 Item Schematics ----------------- None Robot Schematics ------------------ None Fabricated ------------ Nothing Alien Tech Used ----------------- None Achievements -------------- None Challenges ------------ None Game ------ Seed DirtyFortressMachine Manual? 0 Play Time 00:44:31 Cumulative 60.2 hours Start 2024.07.01 @ 18:47:09 End 2024.07.01 @ 19:34:07 Sessions 1 Manual Loads 0 Difficulty Rogue Special Mode None Game No. 37 Rogue 37 Adventurer 0 Explorer 0 Win Type - Total 0 Types 0/0/0/0/0/0/0/0/0 Lore% 19 Gallery% 27 Achievement% 25 Wizard Run 0 Options --------- Layout 1 ASCII 0 Keyboard 1 Movement Numpad Keybinds 0 Fullscreen 2 Font 24/Smallcaps Map View 50x35 Zoom Use 0% Tactical HUD 1 Map Filters NONE Filters NONE Steam 1 RUN: df886478-178e-42ff-b585-f6b5d8341f7f